[Event "12th WLC Weekend 2022"]
[Site "Eindhoven"]
[Date "2022.05.15"]
[Round "6.13"]
[White "Iolis, Oleg"]
[Black "Smit, Maarten"]
[Result "1-0"]
[ECO "B12"]
[WhiteElo "2201"]
[BlackElo "2056"]
[Annotator "TA"]
[PlyCount "121"]
[EventDate "2022.05.13"]
[EventType "swiss"]
[EventCountry "NED"]
[SourceTitle "playchess.com"]
[Source "ChessBase"]
[SourceQuality "1"]
[TimeControl "5400+30"]

{[%evp 9,121,8,27,24,22,9,12,-49,77,78,102,95,98,97,97,103,130,124,124,121,143,120,147,111,136,132,143,134,148,142,140,140,137,135,168,144,397,389,379,380,366,330,316,337,415,370,442,447,452,437,448,445,648,532,533,483,504,500,483,485,575,539,559,556,645,618,638,604,683,616,606,593,691,684,661,646,718,716,744,714,606,681,721,712,691,664,29989,1014,29991,696,3402,1104,1091,1053,1004,990,874,835,2828,2085,29963,29963,29966,29968,29961,29957,29986,29987,29988,29989,29991,29992,29992,29993]} 1. e4 {[%emt 0:01:18]} c6 {[%emt 0:00:06]} 2. d4 {[%emt 0:00:04]} d5 {[%emt 0:00:05]} 3. e5 {[%emt 0:00:02]} c5 {[%emt 0:00:06]} 4. dxc5 {[%emt 0:00:04]} Nc6 {[%emt 0:00:08]} 5. Nf3 {[%emt 0:00:05]} e6 {[%emt 0:00:05]} 6. a3 {[%emt 0:00:22] B12: Caro-Kann: Advance Variation.} Bxc5 {[%emt 0:00:47]} 7. Bd3 {[%emt 0:01:52]} Qc7 {[%emt 0:10:22]} 8. b4 {[%emt 0:00:36]} (8. Bf4 $11) 8... Bb6 {[%emt 0:04:19]} (8... Bd4 $15 {stays ahead.} 9. Nxd4 Qxe5+ 10. Qe2 Qxd4) 9. Bb2 $1 $16 {[%emt 0:00:05]} a6 {[%emt 0:02:25]} 10. O-O {[%emt 0:00:13]} Nge7 {[%emt 0:02:22]} 11. Nbd2 {[%emt 0:00:14] [#]} Ng6 $146 {[%emt 0:01:34][%cal Rg6e5]} ({Predecessor:} 11... Bd7 12. c4 Qb8 13. b5 axb5 14. cxb5 Na7 15. a4 Nac8 16. Nb3 Bd8 17. a5 Ng6 {1-0 (25) Santiago,Y (2440)-De Menezes,R (1580) Natal 2016}) 12. Re1 $1 {[%emt 0:00:36]} Nce7 {[%emt 0:17:37]} 13. Rc1 {[%emt 0:05:13]} Nf4 {[%emt 0:04:00]} 14. Bf1 $1 {[%emt 0:00:40]} Bd7 {[%emt 0:00:23]} 15. c4 {[%emt 0:01:23]} Qd8 {[%emt 0:02:09]} 16. c5 {[%emt 0:00:59]} Ba7 {[%emt 0:01:12]} 17. Nd4 {[%emt 0:04:36]} Nc6 {[%emt 0:05:50]} 18. N2f3 {[%emt 0:03:57]} O-O {[%emt 0:04:30]} 19. g3 {[%emt 0:02:17]} Ng6 {[%emt 0:00:19]} 20. Bd3 {[%emt 0:01:10]} Bb8 {[%emt 0:03:49]} 21. Nxc6 {[%emt 0:01:13] White is much more active. The black rooks are badly placed.} Bxc6 {[%emt 0:02:36]} 22. Nd4 {[%emt 0:01:59]} Nxe5 $2 {[%emt 0:04:12][%mdl 8192] [#] This move loses the game for Black.} (22... Qg5 $16 {was worth a try.} 23. Bc3 Bd7) 23. Rxe5 $1 $18 {[%emt 0:01:01][%mdl 512]} Bxe5 {[%emt 0:01:55]} 24. Nxc6 {[%emt 0:00:04]} bxc6 {[%emt 0:00:50]} 25. Bxe5 {[%emt 0:00:04]} f6 {[%emt 0:01:08]} 26. Bd6 {[%emt 0:00:05]} Re8 {[%emt 0:00:37]} 27. Qe2 {[%emt 0:01:49]} ({Not} 27. Qh5 g6 28. Qe2 Qc8 $18) 27... Qc8 {[%emt 0:02:36]} 28. Qh5 {[%emt 0:07:32]} f5 {[%emt 0:01:18]} 29. f4 {[%emt 0:01:08]} Rd8 {[%emt 0:03:16]} 30. Re1 {[%emt 0:02:26]} Qd7 {[%emt 0:00:24]} (30... Ra7 $142 31. Qe2 g6) 31. Qe2 {[%emt 0:00:15]} Re8 {[%emt 0:01:04]} 32. Rb1 {[%emt 0:01:20]} Qc8 {[%emt 0:00:32]} 33. a4 {[%emt 0:00:15]} Ra7 {[%emt 0:03:45]} 34. h4 {[%emt 0:00:18]} Kh8 {[%emt 0:02:27]} 35. Kh2 {[%emt 0:01:13]} Kg8 {[%emt 0:00:23]} 36. Kh3 {[%emt 0:00:12]} Kh8 {[%emt 0:01:35]} 37. Be5 {[%emt 0:01:03]} Kg8 {[%emt 0:00:29]} 38. Bd4 {[%emt 0:00:19]} Kh8 {[%emt 0:00:58]} 39. Re1 {[%emt 0:00:16]} Ree7 {[%emt 0:01:05]} 40. Rc1 {[%emt 0:02:37]} Kg8 {[%emt 0:00:41]} 41. b5 {[%emt 0:00:43]} axb5 {[%emt 0:00:23]} 42. axb5 {[%emt 0:00:02]} Ra4 {[%emt 0:02:56]} 43. Qe5 {[%emt 0:01:04]} cxb5 {[%emt 0:01:07]} 44. Bxb5 {[%emt 0:01:19]} Rb4 {[%emt 0:02:16]} 45. Bd3 {[%emt 0:00:51]} Qc6 {[%emt 0:00:59]} 46. Ra1 {[%emt 0:01:20] aiming for Ra6.} h6 {[%emt 0:01:19]} 47. Ra6 {[%emt 0:00:52]} Qc7 {[%emt 0:01:31]} 48. c6 {[%emt 0:02:08]} (48. Ra8+ $142 Rb8 49. Rxb8+ Qxb8 50. Qxb8+ Kf7 51. h5 e5 52. Bxf5 $1 g5 53. hxg6+ Kg7 54. fxe5 Rf7 55. e6+ Rf6 56. e7 h5 57. Qf8#) 48... Rb3 {[%emt 0:01:05]} 49. Bc2 {[%emt 0:00:57]} (49. Ra8+ $142 Rb8 50. Rxb8+ Qxb8 51. Qxb8+ Kf7 52. c7 Kg6 53. c8=Q h5 54. Bxf5+ $1 {[%mdl 512]} exf5 55. Qg8 Kh6 56. Qd6+ g6 57. Qgxg6#) 49... Qc8 {[%emt 0:01:18]} 50. Qe2 {[%emt 0:04:02]} (50. Bxb3 $142 Qxa6 {[#]} 51. Bxd5 $3 {[%mdl 512]}) 50... Rb8 {[%emt 0:02:39]} 51. Be5 {[%emt 0:01:07] A strong pair of Bishops.} Ra8 {[%emt 0:02:42]} 52. Rxa8 {[%emt 0:00:08]} Qxa8 {[%emt 0:00:02]} 53. c7 {[%emt 0:00:10]} d4 {[%emt 0:00:02]} 54. Kh2 {[%emt 0:00:41] Threatens to win with Qc4.} Qc6 {[%emt 0:00:42] [#] Against Qc4} 55. Ba4 $1 {[%emt 0:01:36][%mdl 512] White mates.} Qb7 {[%emt 0:02:28]} (55... Qc1 56. Bc2) 56. Qc2 {[%emt 0:01:44]} Qc8 {[%emt 0:00:09]} 57. Bb5 {[%emt 0:00:21]} Kh7 {[%emt 0:00:58]} 58. Qc6 {[%emt 0:00:48]} d3 {[%emt 0:00:21]} 59. Bxd3 {[%emt 0:00:45]} Rd7 {[%emt 0:00:13]} 60. Qxe6 {[%emt 0:00:58]} Rxc7 {[%emt 0:00:28]} 61. Bxf5+ {[%emt 0:00:26] Weighted Error Value: White=0.25 (precise) /Black=0.71} 1-0

[Event "12th WLC Weekend 2022"]
[Site "Eindhoven"]
[Date "2022.05.15"]
[Round "6.14"]
[White "Kools, Thomas"]
[Black "Wuijts, Johan"]
[Result "1/2-1/2"]
[ECO "A03"]
[WhiteElo "2160"]
[BlackElo "1964"]
[Annotator "TA"]
[PlyCount "55"]
[EventDate "2022.05.13"]
[EventType "swiss"]
[EventCountry "NED"]
[SourceTitle "playchess.com"]
[Source "ChessBase"]
[SourceQuality "1"]
[TimeControl "5400+30"]

{[%evp 10,55,-3,0,3,-14,0,3,7,4,6,8,14,5,20,18,35,29,60,61,90,79,64,73,93,89,83,90,94,31,40,12,13,0,13,0,0,0,0,0,0,-58,-66,-245,-132,-134,-117,-97]} 1. f4 {[%emt 0:00:03]} d5 {[%emt 0:01:49]} 2. Nf3 {[%emt 0:00:06]} c5 {[%emt 0:01:22]} 3. g3 {[%emt 0:00:07]} g6 {[%emt 0:02:16]} 4. Bg2 {[%emt 0:00:07]} Bg7 {[%emt 0:00:05]} 5. O-O {[%emt 0:00:07]} Nc6 {[%emt 0:00:33]} 6. d3 {[%emt 0:00:07]} Bg4 {[%emt 0:02:56] A03: Bird's Opening with 1...d5.} 7. c3 {[%emt 0:07:26]} Bxf3 {[%emt 0:09:04]} 8. Bxf3 {[%emt 0:00:07]} e6 {[%emt 0:08:21] The position is equal.} 9. e4 {[%emt 0:02:56]} Nge7 {[%emt 0:05:03]} 10. Na3 {[%emt 0:01:53] [#]} O-O $146 {[%emt 0:04:16]} ({Predecessor:} 10... Qd7 11. Kg2 O-O-O 12. Rb1 dxe4 13. dxe4 Qxd1 14. Rxd1 e5 15. Be3 b6 16. Nc4 Kc7 {0-1 (50) Necula,I (1890)-Langner,L (2370) Chess.com INT 2021}) 11. e5 {[%emt 0:01:00]} Qd7 {[%emt 0:13:04]} 12. Nc2 {[%emt 0:01:04]} d4 {[%emt 0:03:25]} 13. c4 {[%emt 0:02:34]} Rad8 {[%emt 0:01:45]} 14. Bd2 {[%emt 0:02:02]} h5 {[%emt 0:04:40]} 15. b4 {[%emt 0:03:07]} cxb4 {[%emt 0:03:48]} 16. Nxb4 {[%emt 0:00:21]} Nf5 {[%emt 0:00:55]} 17. Nxc6 {[%emt 0:04:11]} bxc6 {[%emt 0:00:40]} 18. Qa4 {[%emt 0:00:12]} c5 {[%emt 0:01:47]} 19. Bc6 {[%emt 0:03:54]} (19. Qxd7 $16 Rxd7 20. Rab1) 19... Qe7 $14 {[%emt 0:00:17]} 20. Rab1 {[%emt 0:04:08] aiming for Rb7.} (20. Rfb1 $5 {[%cal Rb1b7]} Rb8 21. Rb3 $14) 20... Rb8 {[%emt 0:00:31] Against Rb7} 21. Rb5 {[%emt 0:03:13] Hoping for Rfb1.} (21. Be4 {is interesting.} Ne3 22. Bxe3 dxe3 23. h4) 21... Rxb5 {[%emt 0:02:12]} 22. Qxb5 {[%emt 0:00:37]} g5 {[%emt 0:04:29]} (22... Ne3 {feels hotter.} 23. Re1 g5 24. Bxe3 dxe3 25. Rxe3 gxf4 26. gxf4 Qh4) 23. Rb1 {[%emt 0:00:59]} ({Reject} 23. fxg5 Bxe5 24. Qb7 Qxb7 25. Bxb7 Rb8 $17) 23... gxf4 {[%emt 0:01:54]} 24. Bxf4 {[%emt 0:00:09] Strongly threatening Qa5. This bishop pair is nice.} Bh6 $1 {[%emt 0:00:22] Threatens to win with ...Bxf4.} 25. Bxh6 {[%emt 0:04:59]} (25. Qb2 $11) 25... Nxh6 $15 {[%emt 0:00:07]} 26. h4 $2 {[%emt 0:00:25] [#] Inhibits Qg5.} ({Better is} 26. Qb2 $1 $15 Ng4 27. Qe2) 26... Nf5 {[%emt 0:01:28]} (26... Qc7 $1 $19 {[%cal Rc7e5]} 27. Kg2 (27. Qxc5 $2 Rc8 $19) 27... Nf5) 27. Qb7 $17 {[%emt 0:01:23] [#]} Qd8 {[%emt 0:00:19]} 28. Kh2 {[%emt 0:20:24] Weighted Error Value: White=0.28 (precise) /Black=0.13 (very precise)} 1/2-1/2

[Event "12th WLC Weekend 2022"]
[Site "Eindhoven"]
[Date "2022.05.15"]
[Round "6.15"]
[White "Duson, Robin"]
[Black "Van Helvoort, Rob"]
[Result "1/2-1/2"]
[ECO "D90"]
[WhiteElo "1980"]
[BlackElo "2133"]
[Annotator "TA"]
[PlyCount "43"]
[EventDate "2022.05.13"]
[EventType "swiss"]
[EventCountry "NED"]
[SourceTitle "playchess.com"]
[Source "ChessBase"]
[SourceQuality "1"]
[TimeControl "5400+30"]

{[%evp 11,43,18,19,10,28,18,26,33,69,63,81,55,68,37,45,38,35,41,32,23,43,36,32,4,20,20,45,33,29,0,54,0,39,0]} 1. d4 {[%emt 0:00:06]} Nf6 {[%emt 0:00:07]} 2. c4 {[%emt 0:00:08]} g6 {[%emt 0:00:05]} 3. Nc3 {[%emt 0:00:08]} d5 {[%emt 0:00:19]} 4. cxd5 {[%emt 0:00:36]} Nxd5 {[%emt 0:00:09]} 5. Bd2 {[%emt 0:00:16]} Nb6 {[%emt 0:00:25]} 6. Nf3 {[%emt 0:01:22]} Bg7 {[%emt 0:00:32]} 7. Bg5 {[%emt 0:00:27] D90: Grünfeld: 4 Nf3 Bg7 sidelines.} h6 {[%emt 0:00:53] 7...c5 gains popularity.} 8. Bf4 {[%emt 0:05:26]} O-O {[%emt 0:03:28]} 9. e3 {[%emt 0:08:28] [#] White has an edge.} a5 $146 {[%emt 0:05:28]} ({Predecessor:} 9... g5 10. Bg3 Nc6 11. Bb5 Bd7 12. O-O a6 13. Be2 Rc8 14. Rc1 Re8 15. d5 Na7 {1-0 (80) Gurevich,D (2363)-Corrales Jimenez,F (2537) Chess.com INT 2022}) 10. Be2 {[%emt 0:05:41] White is more active.} Be6 {[%emt 0:08:39][%cal Oc7c5]} 11. Rc1 {[%emt 0:02:26][%cal Ba1c1,Bc1c4,Bc4c5][%mdl 32] Hoping for Nb5.} c6 {[%emt 0:02:07] Prevents Nb5.} 12. O-O {[%emt 0:04:06]} Nd5 {[%emt 0:06:03]} 13. Nxd5 {[%emt 0:02:45]} Bxd5 {[%emt 0:00:21]} 14. Bc4 {[%emt 0:06:42]} Bxc4 {[%emt 0:15:04]} 15. Rxc4 {[%emt 0:00:08]} Nd7 {[%emt 0:00:39]} 16. a3 {[%emt 0:05:10]} Re8 {[%emt 0:02:28]} 17. Bg3 {[%emt 0:02:19]} Rc8 {[%emt 0:13:48]} 18. Qc2 {[%emt 0:03:57]} Nb6 {[%emt 0:13:41]} 19. Rc5 {[%emt 0:00:38]} Nd7 {[%emt 0:00:07]} 20. Rc4 {[%emt 0:00:32]} Nb6 {[%emt 0:00:05]} 21. Rc5 {[%emt 0:00:15]} Nd7 {[%emt 0:00:13]} 22. Rc4 {[%emt 0:00:09] Weighted Error Value: White=0.14 (very precise) /Black=0.09 (flawless)} 1/2-1/2

[Event "12th WLC Weekend 2022"]
[Site "Eindhoven"]
[Date "2022.05.15"]
[Round "6.16"]
[White "Van Zon, Paul"]
[Black "Slagboom, Leandro"]
[Result "1/2-1/2"]
[ECO "D43"]
[WhiteElo "2000"]
[BlackElo "1997"]
[Annotator "TA"]
[PlyCount "36"]
[EventDate "2022.05.13"]
[EventType "swiss"]
[EventCountry "NED"]
[SourceTitle "playchess.com"]
[Source "ChessBase"]
[SourceQuality "1"]
[TimeControl "5400+30"]

{[%evp 22,36,23,15,21,20,13,15,22,12,13,0,33,10,22,17,23]} 1. d4 {[%emt 0:00:02]} d5 {[%emt 0:00:06]} 2. c4 {[%emt 0:00:08]} c6 {[%emt 0:00:04]} 3. Nc3 {[%emt 0:00:06]} Nf6 {[%emt 0:00:05]} 4. Nf3 {[%emt 0:00:05]} e6 {[%emt 0:00:05]} 5. Bg5 {[%emt 0:00:32]} h6 {[%emt 0:00:15]} 6. Bxf6 {[%emt 0:01:14]} Qxf6 {[%emt 0:00:11]} 7. e3 {[%emt 0:00:09]} Nd7 {[%emt 0:01:04]} 8. Rc1 {[%emt 0:01:02]} Bd6 {[%emt 0:01:01]} 9. Be2 {[%emt 0:01:01]} dxc4 {[%emt 0:04:41]} 10. Bxc4 {[%emt 0:00:07]} Qe7 {[%emt 0:01:02]} 11. O-O {[%emt 0:00:25]} O-O {[%emt 0:00:17]} 12. Qe2 {[%emt 0:03:57]} e5 {[%emt 0:12:04] D43: Semi-Slav: 5 Bg5 h6.} 13. Ne4 {[%emt 0:13:32]} exd4 {[%emt 0:00:49]} 14. Nxd6 {[%emt 0:00:34]} Qxd6 {[%emt 0:00:13] [#]} 15. Nxd4 $146 {[%emt 0:00:24]} ({Predecessor:} 15. Rcd1 Qe7 16. Rxd4 Nf6 17. Nh4 Be6 18. Rfd1 c5 19. Rd6 Rfd8 20. Rxd8+ Rxd8 21. Rxd8+ Qxd8 22. Bxe6 fxe6 {½-½ (35) Johansen,J (2326)-Gromotka,H (2367) ICCF email 2017}) 15... Ne5 {[%emt 0:04:34]} 16. Bb3 {[%emt 0:04:07]} Re8 {[%emt 0:09:29]} 17. Rfd1 {[%emt 0:03:37][%cal Od4c6] next Nxc6! is good for White.} Qe7 {[%emt 0:00:59]} 18. h3 {[%emt 0:04:08]} Bd7 {[%emt 0:04:44] An interesting draw.  Weighted Error Value: White=0.09 (flawless) /Black=0.08 (flawless)} 1/2-1/2

[Event "12th WLC Weekend 2022"]
[Site "Eindhoven"]
[Date "2022.05.15"]
[Round "6.17"]
[White "Verhoeven, Robin"]
[Black "Margarido, Jose Miguel Teixeira"]
[Result "0-1"]
[ECO "E60"]
[WhiteElo "1946"]
[BlackElo "2127"]
[Annotator "TA"]
[PlyCount "66"]
[EventDate "2022.05.13"]
[EventType "swiss"]
[EventCountry "NED"]
[SourceTitle "playchess.com"]
[Source "ChessBase"]
[SourceQuality "1"]
[TimeControl "5400+30"]

{[%evp 11,66,-16,19,-18,0,-39,-29,-30,-33,-49,0,-79,-5,-15,-11,-8,0,-252,-241,-219,-225,-399,-216,-214,-182,-337,-337,-324,-323,-477,-477,-460,-444,-710,-675,-1621,-633,-1504,-681,-660,-684,-652,-555,-747,-747,-738,-739,-725,-598,-887,-810,-1533,-1453,-1571,-1641,-1292,-994]} 1. b4 {[%emt 0:00:04]} Nf6 {[%emt 0:05:35]} 2. Bb2 {[%emt 0:00:05]} g6 {[%emt 0:00:10]} 3. Nf3 {[%emt 0:00:18]} Bg7 {[%emt 0:00:05]} 4. c4 {[%emt 0:00:15]} O-O {[%emt 0:00:36]} 5. e3 {[%emt 0:00:40]} d6 {[%emt 0:07:06]} 6. d4 {[%emt 0:01:48]} Nbd7 {[%emt 0:03:42][%cal Oe7e5] 6...c5 is the fancy move.} 7. Nbd2 {[%emt 0:03:11] E60: King's Indian: Unusual lines and Fianchetto Variation without Nc3.} Re8 {[%emt 0:01:27]} 8. Qc2 {[%emt 0:01:22]} e5 {[%emt 0:00:32]} 9. dxe5 {[%emt 0:05:50] Black has an edge.} dxe5 {[%emt 0:00:11]} 10. Rd1 {[%emt 0:01:15]} Qe7 {[%emt 0:03:22] [#]} (10... c5 $15) 11. a3 $146 {[%emt 0:01:07]} (11. c5 $11) ({Predecessor:} 11. c5 e4 12. Ng5 h6 13. Nh3 a5 14. a3 axb4 15. axb4 {½-½ (15) Lins,T-Grillich,A (2140) Berlin 2003}) 11... e4 {[%emt 0:03:00]} (11... c5 $17) 12. Nd4 $1 $11 {[%emt 0:04:13][%cal Bf3d4,Bd4b5,Bb5d6][%mdl 32]} (12. Ng5 a5 13. Qb3 h6 $17) 12... c5 $36 {[%emt 0:18:57][%mdl 2048] Black has some pressure.} 13. Nb5 {[%emt 0:01:50]} Ne5 {[%emt 0:01:55]} 14. Nxe4 $2 {[%emt 0:13:31][%mdl 8192] White is on the road to losing.} (14. bxc5 $1 $11 {and White stays safe.} Bg4 15. Rc1) 14... Nxe4 $19 {[%emt 0:01:43]} 15. Qxe4 {[%emt 0:02:36]} Bf5 {[%emt 0:05:06]} (15... cxb4 16. Nd6 $15) 16. Qd5 {[%emt 0:01:35]} (16. Qf4 Rad8 17. bxc5 Rxd1+ 18. Kxd1 Qxc5 19. Qd4) 16... cxb4 {[%emt 0:30:35]} (16... Rad8 $142 17. Qxc5 (17. Nd6 $2 Ng4 $19) 17... Rxd1+ 18. Kxd1 Qh4) 17. Nd6 {[%emt 0:11:58]} Red8 {[%emt 0:06:37][%cal Oe5d3]} 18. axb4 $2 {[%emt 0:20:46] [#]} (18. c5 Bc2 19. Rd4) 18... Nd3+ $1 {[%emt 0:00:25][%mdl 512]} 19. Rxd3 {[%emt 0:02:43]} (19. Bxd3 $2 Rxd6 20. Qa5 Bxd3 $19) 19... Bxd3 {[%emt 0:00:01] Really sharp!} ({Not} 19... Bxb2 $2 20. c5 Bxd3 21. Bxd3) 20. Qxd3 {[%emt 0:00:56]} (20. c5 $142 Bxb2 21. Bxd3) 20... Rxd6 {[%emt 0:01:00] Black is clearly winning.} ({Don't blunder} 20... Bxb2 $2 21. c5 Be5 22. Be2 $19) 21. Qb3 {[%emt 0:00:22]} Rad8 {[%emt 0:03:55][%cal Od6d1] And now ...Rd1+! would win.} 22. Bxg7 {[%emt 0:00:52]} (22. Be2 $142 Qe4 23. O-O Bxb2 24. Qxb2) 22... Rd1+ {[%emt 0:03:19]} ({But not} 22... Kxg7 $2 23. Be2 $19) 23. Ke2 {[%emt 0:01:22]} R8d2+ {[%emt 0:00:47]} 24. Kf3 {[%emt 0:00:06]} Kxg7 {[%emt 0:00:11]} (24... Qh4 $142 25. g3 Qh5+ 26. g4 Qh4) 25. Qc3+ {[%emt 0:01:40]} Qf6+ {[%emt 0:00:17]} 26. Qxf6+ {[%emt 0:00:05]} Kxf6 {[%emt 0:00:03][%mdl 4096] Endgame KRR-KRB} 27. g3 {[%emt 0:01:02]} Rb2 {[%emt 0:00:56]} 28. b5 {[%emt 0:01:58]} Rbb1 {[%emt 0:01:14]} 29. Kg2 {[%emt 0:00:31]} Rbc1 {[%emt 0:00:17]} 30. f4 {[%emt 0:01:10]} Ke7 {[%emt 0:00:47]} 31. Kf2 {[%emt 0:00:32]} a5 {[%emt 0:00:37] [#] White must now prevent ...a4.} 32. bxa6 {[%emt 0:00:20]} bxa6 {[%emt 0:00:00] Hoping for ...a5.} 33. c5 {[%emt 0:00:17]} Rxc5 {[%emt 0:00:49] Weighted Error Value: White=1.03/Black=0.36} 0-1

[Event "12th WLC Weekend 2022"]
[Site "Eindhoven"]
[Date "2022.05.15"]
[Round "6.18"]
[White "Van de Put, Jeroen"]
[Black "Kools, Jasper"]
[Result "1-0"]
[ECO "B43"]
[WhiteElo "1987"]
[BlackElo "1774"]
[Annotator "TA"]
[PlyCount "55"]
[EventDate "2022.05.13"]
[EventType "swiss"]
[EventCountry "NED"]
[SourceTitle "playchess.com"]
[Source "ChessBase"]
[SourceQuality "1"]
[TimeControl "5400+30"]

{[%evp 9,55,22,38,23,45,0,25,-18,-15,-24,-21,-46,23,-2,0,-64,-72,-90,-90,-85,108,112,203,197,188,108,416,414,421,387,585,537,527,523,618,602,671,561,783,696,1094,1113,2474,2381,29990,743,729,721]} 1. e4 {[%emt 0:00:03]} c5 {[%emt 0:00:07]} 2. Nf3 {[%emt 0:00:04][%cal Bg1f3,Bf3d4,Bd4b3][%mdl 32]} e6 {[%emt 0:00:08]} 3. d4 {[%emt 0:00:16]} cxd4 {[%emt 0:00:05]} 4. Nxd4 {[%emt 0:00:03]} a6 {[%emt 0:00:07]} 5. Nc3 {[%emt 0:04:34]} Qc7 {[%emt 0:00:07]} 6. Qf3 {[%emt 0:03:50] B43: Sicilian: Kan Variation: 5 Nc3.} Nc6 {[%emt 0:02:08]} 7. Nb3 {[%emt 0:02:16]} b5 {[%emt 0:05:44]} 8. Bf4 {[%emt 0:02:43] White has an edge.} (8. Qg3 $5 {[%cal Rg3c7]} d6 9. a3 $14) 8... d6 {[%emt 0:03:11]} 9. a3 {[%emt 0:03:53]} Nf6 {[%emt 0:00:19] [#]} 10. O-O-O $146 {[%emt 0:00:17][%cal Of1b5]} ({Predecessor:} 10. Be2 Be7 11. Rd1 O-O 12. Qg3 Ne5 13. Bh6 Ng6 14. Be3 Bb7 15. Nc5 Bc6 16. Bg5 {½-½ (34) Cabanas Bravo,J (2036)-Leniz Martinez,F (1874) Madrid 2008}) 10... Be7 {[%emt 0:02:48]} (10... Ne5 $15 11. Qe3 Bb7) 11. g4 {[%emt 0:05:18]} (11. Bxb5 $5 axb5 12. Nxb5 $11) 11... e5 {[%emt 0:04:33]} 12. g5 {[%emt 0:15:22]} (12. Nd5 $1 $11 Nxd5 13. exd5) 12... Bg4 $15 {[%emt 0:02:38]} (12... exf4 13. gxf6 Bxf6 14. Nd5 $16) 13. Qg2 {[%emt 0:00:04]} Bxd1 {[%emt 0:11:48]} (13... exf4 $2 14. gxf6 Bxd1 15. Qxg7 $18 (15. fxe7 Nxe7 16. Kxd1 O-O $18) (15. fxg7 Rg8 $15)) 14. gxf6 {[%emt 0:00:05] [#]} gxf6 $1 {[%emt 0:00:42]} 15. Nd5 {[%emt 0:11:57]} (15. Be3 Bh5) 15... Qb7 {[%emt 0:01:16] [#]} 16. Bh6 $1 $18 {[%emt 0:02:45]} ({Resist} 16. Qg7 $6 O-O-O 17. Bh3+ Kb8 18. Rxd1 exf4 $14) 16... Bh5 {[%emt 0:00:29]} 17. Bd3 {[%emt 0:03:48]} (17. Rg1 $18 {[%cal Og2g8] Strongly threatening Qg8+!} Bg6 18. Qf3) 17... O-O-O $2 {[%emt 0:03:20][%mdl 8192] Loses the game.} (17... Kd8 $16 {is more resistant.}) 18. Qh3+ {[%emt 0:00:31]} Kb8 {[%emt 0:00:43]} 19. Qxh5 {[%emt 0:00:07]} a5 {[%emt 0:05:16]} (19... Rdg8 $142 20. Qxf7 Rg6) 20. Nxe7 {[%emt 0:01:11]} Qxe7 {[%emt 0:00:44]} 21. Bxb5 {[%emt 0:00:18]} Rc8 {[%emt 0:00:17]} 22. Rd1 {[%emt 0:05:14]} Qe6 {[%emt 0:00:36]} 23. Kb1 {[%emt 0:05:40] And now Qe2 would win.} Rhg8 {[%emt 0:00:52]} 24. Be3 {[%emt 0:00:18]} Na7 {[%emt 0:01:34]} 25. Qe2 {[%emt 0:00:25]} Qg4 {[%emt 0:00:48]} 26. Bxa7+ {[%emt 0:00:32]} Kxa7 {[%emt 0:00:08]} 27. Qxg4 {[%emt 0:00:24]} (27. Qe3+ $142 Ka8 28. Rxd6 Qe6 29. Rxe6 Rg1+ 30. Ka2 fxe6 31. Nxa5 Rg7 32. Qb6) 27... Rxg4 {[%emt 0:00:06]} 28. Bd7 {[%emt 0:00:03] Weighted Error Value: White=0.32/Black=1.08} 1-0